fUST/lending_fUST_20250527
["ID","MTS","AMOUNT","RATE_DAILY","PERIOD"]
[362437148,1748290235607,-430.0,0.00024657,3]
[362437149,1748290235617,-430.0,0.00024657,3]
[362437150,1748290235628,-430.0,0.00024657,3]
[362437151,1748290235637,-430.0,0.00024657,3]
[362437152,1748290235647,-430.0,0.00024657,3]
[362437153,1748290235659,-258.73147071,0.00024657,3]
[362437154,1748290235670,-430.0,0.00024657,3]
[362437155,1748290235680,-430.0,0.00024657,3]
[362437156,1748290235690,-253.72579854,0.00024657,3]
[362437157,1748290235701,-430.0,0.00024657,3]
[362437158,1748290235712,-430.0,0.00024657,3]
[362437159,1748290235724,-430.0,0.00024657,3]
[362437160,1748290235736,-430.0,0.00024657,3]
[362437161,1748290235747,-470.0,0.00024657,3]
[362437162,1748290235759,-430.0,0.00024657,3]
[362437163,1748290235769,-430.0,0.00024657,3]
[362437164,1748290235781,-430.0,0.00024657,3]
[362437165,1748290235791,-470.0,0.00024657,3]
[362437166,1748290235800,-430.0,0.00024657,3]
[362437167,1748290235812,-390.0,0.00024657,3]
[362437168,1748290235822,-430.0,0.00024657,3]
[362437169,1748290235835,-430.0,0.00024657,3]
[362437170,1748290235847,-430.0,0.00024657,3]
[362437171,1748290235858,-430.0,0.00024657,3]
[362437172,1748290235873,-484.05073789,0.00024657,3]
[362437173,1748290235885,-430.0,0.00024657,3]
[362437174,1748290235897,-470.0,0.00024657,3]
[362437175,1748290235908,-430.0,0.00024657,3]
[362437176,1748290235918,-430.0,0.00024657,3]
[362437177,1748290235930,-430.0,0.00024657,3]
[362437178,1748290235940,-470.0,0.00024657,3]
[362437179,1748290235951,-470.0,0.00024657,3]
[362437180,1748290235961,-430.0,0.00024657,3]
[362437181,1748290235971,-250.0,0.00024657,3]
[362437182,1748290235980,-470.0,0.00024657,3]
[362437183,1748290235990,-430.0,0.00024657,3]
[362437184,1748290236001,-340.0,0.00024657,3]
[362437185,1748290236011,-450.0,0.00024657,3]
[362437186,1748290236021,-420.19644435,0.00024657,3]
[362437187,1748290236031,-430.0,0.00024657,3]
[362437188,1748290236043,-520.0,0.00024657,3]
[362437189,1748290236053,-430.0,0.00024657,3]
[362437190,1748290236063,-470.0,0.00024657,3]
[362437191,1748290236074,-430.0,0.00024657,3]
[362437192,1748290236084,-470.0,0.00024657,3]
[362437193,1748290236093,-430.0,0.00024657,3]
[362437194,1748290236103,-430.0,0.00024657,3]
[362437195,1748290236112,-470.0,0.00024657,3]
[362437196,1748290236122,-470.0,0.00024657,3]
[362437197,1748290236131,-430.0,0.00024657,3]
[362437198,1748290236141,-373.88889079,0.00024657,3]
[362437199,1748290236151,-430.0,0.00024657,3]
[362437200,1748290236162,-430.0,0.00024657,3]
[362437201,1748290236174,-490.0,0.00024657,3]
[362437202,1748290236184,-200.0,0.00024657,3]
[362437203,1748290236194,-430.0,0.00024657,3]
[362437204,1748290236204,-470.0,0.00024657,3]
[362437205,1748290236218,-350.0,0.00024657,3]
[362437206,1748290236228,-430.0,0.00024657,3]
[362437207,1748290236240,-430.0,0.00024657,3]
[362437208,1748290236252,-430.0,0.00024657,3]
[362437209,1748290236264,-430.0,0.00024657,3]
[362437210,1748290236275,-470.0,0.00024657,3]
[362437211,1748290236286,-430.0,0.00024657,3]
[362437212,1748290236297,-430.0,0.00024657,3]
[362437213,1748290236308,-430.0,0.00024657,3]
[362437214,1748290236318,-430.0,0.00024657,3]
[362437215,1748290236328,-220.0,0.00024657,3]
[362437216,1748290236338,-550.0,0.00024657,3]
[362437217,1748290236349,-430.0,0.00024657,3]
[362437218,1748290236360,-430.0,0.00024657,3]
[362437219,1748290236370,-470.0,0.00024657,3]
[362437220,1748290236379,-430.0,0.00024657,3]
[362437221,1748290236389,-470.0,0.00024657,3]
[362437222,1748290236400,-430.0,0.00024657,3]
[362437223,1748290236410,-430.0,0.00024657,3]
[362437224,1748290236421,-430.0,0.00024657,3]
[362437225,1748290236432,-430.0,0.00024657,3]
[362437226,1748290236441,-430.0,0.00024657,3]
[362437227,1748290236452,-470.0,0.00024657,3]
[362437228,1748290236462,-307.54732532,0.00024657,3]
[362437229,1748290236474,-430.0,0.00024657,3]
[362437230,1748290236484,-470.0,0.00024657,3]
[362437231,1748290236494,-430.0,0.00024657,3]
[362437232,1748290236506,-430.0,0.00024657,3]
[362437233,1748290236517,-470.0,0.00024657,3]
[362437234,1748290236527,-430.0,0.00024657,3]
[362437235,1748290236538,-470.0,0.00024657,3]
[362437236,1748290236550,-430.0,0.00024657,3]
[362437237,1748290236560,-470.0,0.00024657,3]
[362437238,1748290236571,-430.0,0.00024657,3]
[362437239,1748290236580,-570.0,0.00024657,3]
[362437240,1748290236590,-430.0,0.00024657,3]
[362437241,1748290236601,-470.0,0.00024657,3]
[362437242,1748290236610,-430.0,0.00024657,3]
[362437243,1748290236621,-430.0,0.00024657,3]
[362437244,1748290236632,-430.0,0.00024657,3]
[362437245,1748290236641,-341.33601702,0.00024657,3]
[362437246,1748290236651,-430.0,0.00024657,3]
[362437247,1748290236662,-470.0,0.00024657,3]
[362437248,1748290236674,-430.0,0.00024657,3]
[362437249,1748290236685,-470.0,0.00024657,3]
[362437250,1748290236695,-470.0,0.00024657,3]
[362437251,1748290236705,-430.0,0.00024657,3]
[362437252,1748290236714,-430.0,0.00024657,3]
[362437253,1748290236724,-470.0,0.00024657,3]
[362437254,1748290236735,-400.0,0.00024657,3]
[362437255,1748290236745,-430.0,0.00024657,3]
[362437256,1748290236756,-470.0,0.00024657,3]
[362437257,1748290236766,-430.0,0.00024657,3]
[362437258,1748290236777,-470.0,0.00024657,3]
[362437259,1748290236787,-430.0,0.00024657,3]
[362437260,1748290236796,-470.0,0.00024657,3]
[362437261,1748290236806,-430.0,0.00024657,3]
[362437262,1748290236816,-470.0,0.00024657,3]
[362437263,1748290236825,-430.0,0.00024657,3]
[362437264,1748290236835,-430.0,0.00024657,3]
[362437265,1748290236844,-470.0,0.00024657,3]
[362437266,1748290236854,-470.0,0.00024657,3]
[362437267,1748290236866,-300.0,0.00024657,3]
[362437268,1748290236876,-470.0,0.00024657,3]
[362437269,1748290236885,-430.0,0.00024657,3]
[362437270,1748290236896,-470.0,0.00024657,3]
[362437271,1748290236907,-470.0,0.00024657,3]
[362437272,1748290236916,-430.0,0.00024657,3]
[362437273,1748290236927,-470.0,0.00024657,3]
[362437274,1748290236936,-470.0,0.00024657,3]
[362437275,1748290236946,-430.0,0.00024657,3]
[362437276,1748290236956,-470.0,0.00024657,3]
[362437277,1748290236966,-430.0,0.00024657,3]
[362437278,1748290236976,-446.59,0.00024657,3]
[362437279,1748290236986,-500.0,0.00024657,3]
[362437280,1748290236996,-279.97918446,0.00024657,3]
[362437281,1748290237006,-430.0,0.00024657,3]
[362437282,1748290237015,-470.0,0.00024657,3]
[362437283,1748290237024,-336.25398111,0.00024657,3]
[362437284,1748290237035,-430.0,0.00024657,3]
[362437285,1748290237044,-430.0,0.00024657,3]
[362437286,1748290237054,-450.0,0.00024657,3]
[362437287,1748290237063,-430.0,0.00024657,3]
[362437288,1748290237074,-430.0,0.00024657,3]
[362437289,1748290237083,-430.0,0.00024657,3]
[362437290,1748290237095,-430.0,0.00024657,3]
[362437291,1748290237105,-430.0,0.00024657,3]
[362437292,1748290237116,-430.0,0.00024657,3]
[362437293,1748290237127,-430.0,0.00024657,3]
[362437294,1748290237136,-470.0,0.00024657,3]
[362437295,1748290237147,-470.0,0.00024657,3]
[362437296,1748290237156,-430.0,0.00024657,3]
[362437297,1748290237165,-430.0,0.00024657,3]
[362437298,1748290237174,-470.0,0.00024657,3]
[362437299,1748290237184,-470.0,0.00024657,3]
[362437300,1748290237194,-430.0,0.00024657,3]
[362437301,1748290237205,-470.0,0.00024657,3]
[362437302,1748290237215,-430.0,0.00024657,3]
[362437303,1748290237225,-470.0,0.00024657,3]
[362437304,1748290237234,-470.0,0.00024657,3]
[362437305,1748290237243,-470.0,0.00024657,3]
[362437306,1748290237253,-430.0,0.00024657,3]
[362437307,1748290237262,-430.0,0.00024657,3]
[362437308,1748290237272,-430.0,0.00024657,3]
[362437309,1748290237282,-470.0,0.00024657,3]
[362437310,1748290237291,-470.0,0.00024657,3]
[362437311,1748290237301,-490.0,0.00024657,3]
[362437312,1748290237311,-450.0,0.00024657,3]
[362437313,1748290237321,-550.0,0.00024657,3]
[362437314,1748290237330,-470.0,0.00024657,3]
[362437315,1748290237340,-430.0,0.00024657,3]
[362437316,1748290237350,-430.0,0.00024657,3]
[362437317,1748290237360,-430.0,0.00024657,3]
[362437318,1748290237369,-430.0,0.00024657,3]
[362437319,1748290237379,-430.0,0.00024657,3]
[362437320,1748290237389,-470.0,0.00024657,3]
[362437321,1748290237399,-430.0,0.00024657,2]
[362437322,1748290237409,-430.0,0.00024657,2]
[362437323,1748290237420,-430.0,0.00024657,2]
[362437324,1748290237430,-430.0,0.00024657,2]
[362437325,1748290237439,-430.0,0.00024657,2]
[362437326,1748290237448,-154.77,0.00024657,2]
[362437327,1748290237459,-430.0,0.00024657,3]
[362437328,1748290237468,-430.0,0.00024657,3]
[362437329,1748290237478,-430.0,0.00024657,3]
[362437330,1748290237489,-430.0,0.00024657,3]
[362437331,1748290237499,-362.44,0.00024657,3]
[362437332,1748290237509,-430.0,0.00024657,3]
[362437333,1748290237519,-76.91229662,0.00024657,3]
[362437334,1748290237552,-393.08770338,0.00024657,3]
[362437335,1748290237563,-470.0,0.00024657,3]
[362437336,1748290237573,-81.91229662,0.00024657,3]
[362437349,1748290238404,-348.08770338,0.00024657,3]
[362437350,1748290238414,-490.0,0.00024657,3]
[362437351,1748290238426,-470.0,0.00024657,3]
[362437352,1748290238436,-430.0,0.00024657,3]
[362437353,1748290238446,-430.0,0.00024657,3]
[362437354,1748290238455,-430.0,0.00024657,3]
[362437355,1748290238467,-430.0,0.00024657,3]
[362437356,1748290238478,-430.0,0.00024657,3]
[362437357,1748290238488,-430.0,0.00024657,3]
[362437358,1748290238498,-430.0,0.00024657,3]
[362437359,1748290238507,-470.0,0.00024657,3]
[362437360,1748290238517,-210.29853843,0.00024657,3]
[362437361,1748290238526,-470.0,0.00024657,3]
[362437362,1748290238536,-430.0,0.00024657,3]
[362437363,1748290238545,-430.0,0.00024657,3]
[362437364,1748290238555,-430.0,0.00024657,3]
[362437365,1748290238565,-430.0,0.00024657,3]
[362437366,1748290238577,-430.0,0.00024657,3]
[362437367,1748290238587,-154.18824041,0.00024657,3]
[362437368,1748290238601,-213.67435005,0.00024657,3]
[362437369,1748290238611,-470.0,0.00024657,3]
[362437370,1748290238620,-470.0,0.00024657,3]
[362437371,1748290238631,-470.0,0.00024657,3]
[362437372,1748290238642,-470.0,0.00024657,3]
[362437373,1748290238655,-430.0,0.00024657,3]
[362437374,1748290238666,-430.0,0.00024657,3]
[362437375,1748290238675,-430.0,0.00024657,3]
[362437376,1748290238686,-430.0,0.00024657,3]
[362437377,1748290238695,-430.0,0.00024657,3]
[362437378,1748290238706,-450.96,0.00024657,3]
[362437379,1748290238716,-305.36564995,0.00024657,3]
[362437380,1748290238730,-164.63435005,0.00024657,3]
[362437381,1748290238739,-430.0,0.00024657,3]
[362437382,1748290238749,-30.08675044,0.00024657,3]
[362437435,1748290240616,-439.91324956,0.00024657,3]
[362437437,1748290240626,-430.0,0.00024657,3]
[362437439,1748290240636,-156.60759887,0.00024657,3]
[362437441,1748290240649,-273.39240113,0.00024657,3]
[362437443,1748290240659,-123.54875917,0.00024657,3]
[362437446,1748290240672,-346.45124083,0.00024657,3]
[362437448,1748290240682,-70.20366253,0.00024657,3]
[362437450,1748290240694,-383.112,0.00024657,3]
[362437452,1748290240706,-16.68433747,0.00024657,3]
[362437454,1748290240715,-430.0,0.00024657,3]
[362437456,1748290240725,-430.0,0.00024657,3]
[362437458,1748290240735,-276.70956453,0.00024657,3]
[362437460,1748290240744,-430.0,0.00024657,3]
[362437463,1748290240755,-430.0,0.00024657,3]
[362437465,1748290240764,-320.0,0.00024657,3]
[362437467,1748290240774,-430.0,0.00024657,3]
[362437469,1748290240783,-470.0,0.00024657,3]
[362437471,1748290240793,-430.0,0.00024657,3]
[362437473,1748290240803,-470.0,0.00024657,3]
[362437475,1748290240812,-430.0,0.00024657,3]
[362437477,1748290240821,-470.0,0.00024657,3]
[362437479,1748290240830,-430.0,0.00024657,3]
[362437481,1748290240840,-470.0,0.00024657,3]
[362437483,1748290240849,-430.0,0.00024657,3]
[362437485,1748290240859,-430.0,0.00024657,3]
[362437487,1748290240873,-470.0,0.00024657,3]
[362437489,1748290240882,-430.0,0.00024657,3]
[362437491,1748290240891,-470.0,0.00024657,3]
[362437493,1748290240900,-430.0,0.00024657,3]
[362437495,1748290240910,-470.0,0.00024657,3]
[362437497,1748290240919,-470.0,0.00024657,3]
[362437499,1748290240929,-377.29336116,0.00024657,3]
[362437501,1748290240938,-470.0,0.00024657,3]
[362437503,1748290240947,-470.0,0.00024657,3]
[362437505,1748290240957,-430.0,0.00024657,3]
[362437507,1748290240967,-470.0,0.00024657,3]
[362437509,1748290240977,-484.41,0.00024657,3]
[362437511,1748290240986,-259.66497712,0.00024657,3]
[362437640,1748290243424,-500.0,0.00022006,2]
[362437641,1748290243434,-500.0,0.00022006,2]
[362437642,1748290243445,-500.0,0.00022006,2]
[362437643,1748290243455,-559.26536242,0.00022006,2]
[362437644,1748290243465,-241.34933092,0.00022006,2]
[362437646,1748290243475,-500.0,0.00022006,2]
[362437647,1748290243486,-500.0,0.00022006,2]
[362437648,1748290243496,-500.0,0.00022006,2]
[362437649,1748290243507,-500.0,0.00022006,2]
[362437650,1748290243518,-500.0,0.00022006,2]
[362437651,1748290243528,-500.0,0.00022006,2]
[362437652,1748290243538,-500.0,0.00022006,2]
[362437653,1748290243548,-414.29856193,0.00022006,2]
[362437654,1748290243558,-207.41145913,0.00022006,2]
[362437655,1748290243567,-19.37140398,0.00024657,3]
[362437677,1748290586463,10145.07604136,0.00024657,120]
[362437683,1748290863991,178.246276,0.00022093,120]
[362437684,1748290886004,-200.0,0.00024946,120]
[362437685,1748290886035,-800.0,0.00025,120]
[362437686,1748290886062,-152.0,0.00025,120]
[362437687,1748290886089,-3562.4,0.00025,120]
[362437692,1748291153097,-162.0,0.00016438,3]
[362437693,1748291153118,-213.054972,0.00020529,2]
[362437694,1748291153138,-250.0,0.00020738,2]
[362437695,1748291153159,-500.0,0.00021164,2]
[362437696,1748291153179,-241.79821764,0.00021592,2]
[362437697,1748291153200,-329.0433,0.00021891,2]
[362437698,1748291153220,-178.246276,0.00022093,2]
[362437699,1748291153241,-151.0,0.00022126,2]
[362437700,1748291153263,-2793.6265949,0.00022139,2]
[362437701,1748291153284,-239.992975,0.00022142,2]
[362437702,1748291153305,-160.0,0.00022159,2]
[362437703,1748291153326,-156.587,0.00022181,2]
[362437704,1748291153349,-207.4,0.00022184,2]
[362437705,1748291153370,-99.03819787,0.00022236,2]
[362437706,1748291233095,-63.34252113,0.00022236,2]
[362437707,1748291233117,-565.0,0.00022258,2]
[362437708,1748291233139,-300.0,0.00022258,2]
[362437709,1748291233161,-500.0,0.0002226,2]
[362437710,1748291233185,-168.3888056,0.00022291,2]
[362437711,1748291233208,-174.61919141,0.00022346,2]
[362437712,1748291233231,-181.08010149,0.00022401,2]
[362437713,1748291233252,-187.78006525,0.00022456,2]
[362437714,1748291233275,-194.72792766,0.00022511,2]
[362437715,1748291233299,-696.4575767,0.00022557,2]
[362437716,1748291233321,-276.59037401,0.00022566,2]
[362437717,1748291233342,-300.0,0.00022585,2]
[362437718,1748291233365,-151.0,0.00022586,2]
[362437719,1748291233390,-151.0,0.00022586,2]
[362437720,1748291233414,-151.0,0.00022586,2]
[362437721,1748291233436,-121.81589013,0.00022586,2]
[362437723,1748291249089,-29.18410987,0.00022586,2]
[362437724,1748291249114,-151.0,0.00022586,2]
[362437725,1748291249141,-151.0,0.00022586,2]
[362437726,1748291249165,-151.0,0.00022586,2]
[362437727,1748291249188,-151.0,0.00022586,2]
[362437728,1748291249211,-151.0,0.00022586,2]
[362437729,1748291249234,-151.0,0.00022586,2]
[362437730,1748291249257,-113.1954061,0.00022586,2]
[362437735,1748291346099,-161.0,0.00016438,3]
[362437736,1748291346124,-38.68098976,0.000168,2]
[362437737,1748291351071,-114.88383594,0.000168,2]
[362437738,1748291351092,-1434.52879803,0.0002,2]
[362437784,1748291432623,-111.0044364,0.0002,2]
[362437786,1748291432638,-500.0,0.00021164,2]
[362437788,1748291432648,-300.0,0.00021999,2]
[362437790,1748291432659,-500.0,0.00021999,2]
[362437792,1748291432669,-481.63752342,0.00021999,2]
[362437794,1748291432679,-500.0,0.00021999,2]
[362437797,1748291432688,-521.12584075,0.00021999,2]
[362437798,1748291432698,-153.98685195,0.00021999,2]
[362437801,1748291432709,-477.31505793,0.00021999,2]
[362437803,1748291432718,-7910.65021503,0.00022,2]
[362437804,1748291432728,-349.96765037,0.00022,2]
[362437806,1748291432737,-15050.32901162,0.00022,2]
[362437808,1748291432747,-304.0,0.00022,2]
[362437811,1748291432757,-500.0,0.0002226,2]
[362437813,1748291432766,-207.4,0.00022573,2]
[362437816,1748291432775,-332.84,0.00022729,2]
[362437819,1748291432786,-4032.18709703,0.00022842,2]
[362437823,1748291432798,-3259.29504068,0.00022842,2]
[362437826,1748291432809,-160.0,0.00022842,2]
[362437829,1748291432818,-160.0,0.00022842,2]
[362437832,1748291432827,-229.15402412,0.00022842,2]
[362437835,1748291432836,-894.64583333,0.00022842,2]
[362437838,1748291432845,-212.86114354,0.000229,8]
[362437841,1748291432855,-464.30505113,0.000229,2]
[362437844,1748291432865,-2450.98326218,0.00023,2]
[362437847,1748291432874,-212.86114348,0.0002315,8]
[362437850,1748291432884,-1000.0,0.000233,2]
[362437853,1748291432893,-500.0,0.00023356,2]
[362437856,1748291432904,-212.86114348,0.000234,9]
[362437859,1748291432913,-212.86114348,0.0002365,9]
[362437863,1748291432924,-377.829,0.000238,5]
[362437865,1748291432934,-1000.0,0.000238,2]
[362437867,1748291432944,-212.86114348,0.000239,10]
[362437869,1748291432953,-420.0,0.00023906,2]
[362437871,1748291432962,-47.50132654,0.00023942,2]
[362437919,1748291438593,-167.57247346,0.00023942,2]
[362437920,1748291438602,-168.69486045,0.00023989,2]
[362437921,1748291438614,-1567.3008456,0.00023989,2]
[362438802,1748292337130,-160.0,0.00016438,3]
[362438803,1748292337151,-411.84636335,0.00021164,2]
[362438804,1748292436089,-289.52825411,0.00017585,2]
[362438805,1748292436110,-88.15363665,0.00021164,2]
[362438806,1748292436133,-301.17378327,0.00021256,2]
[362438807,1748292451088,-359.34189166,0.00021256,2]
[362438808,1748292451112,-976.36420144,0.00021899,2]
[362438809,1748292451136,-166.38442779,0.00021908,2]
[362438810,1748292451158,-709.40585274,0.00022181,2]
[362438816,1748292560115,-204.53574683,0.00021164,2]
[362438817,1748292574150,-295.46425317,0.00021164,2]
[362438818,1748292574172,-1471.09354683,0.00022181,2]
[362438855,1748292632669,-440.34378329,0.00020081,2]
[362438857,1748292632680,-212.13445293,0.00022181,2]
[362438859,1748292632691,-207.4,0.00022572,2]
[362438861,1748292632701,-151.0,0.00022572,2]
[362438863,1748292632711,-151.0,0.00022572,2]
[362438864,1748292632720,-151.0,0.00022572,2]
[362438865,1748292632730,-151.0,0.00022572,2]
[362438866,1748292632739,-151.0,0.00022572,2]
[362438867,1748292632749,-151.0,0.00022572,2]
[362438869,1748292632759,-151.0,0.00022572,2]
[362438871,1748292632769,-151.0,0.00022572,2]
[362438873,1748292632779,-151.0,0.00022572,2]
[362438876,1748292632789,-151.0,0.00022572,2]
[362438879,1748292632798,-151.0,0.00022572,2]
[362438881,1748292632808,-151.0,0.00022572,2]
[362438883,1748292632817,-151.0,0.00022572,2]
[362438884,1748292632825,-151.0,0.00022572,2]
[362438886,1748292632835,-151.0,0.00022572,2]
[362438888,1748292632844,-151.0,0.00022572,2]
[362438890,1748292632855,-5000.0,0.00022585,2]
[362438892,1748292632865,-156.587,0.00022627,2]
[362438894,1748292632875,-162.380719,0.00022682,2]
[362438895,1748292632885,-370.31,0.00022722,2]
[362438897,1748292632895,-1200.0,0.00022724,2]
[362438899,1748292632905,-300.0,0.00022725,2]
[362438901,1748292632915,-300.0,0.00022736,2]
[362438903,1748292632925,-300.0,0.00022736,2]
[362438904,1748292632935,-168.3888056,0.00022737,2]
[362438905,1748292632945,-171.87523467,0.00022751,5]
[362438906,1748292632954,-174.61919141,0.00022792,2]
[362438907,1748292632964,-894.64583333,0.00022809,2]
[362438908,1748292632974,-160.0,0.00022809,2]
[362438909,1748292632984,-423.08503179,0.00022818,2]
[362438910,1748292632994,-181.08010149,0.00022847,2]
[362438911,1748292633004,-266.64290535,0.00022902,2]
[362438912,1748292633018,-860.9905867,0.00023241,2]
[362438913,1748292633028,-496.56596079,0.00023324,2]
[362438914,1748292633039,-317.264908,0.00023325,2]
[362438915,1748292633050,-500.0,0.00023356,2]
[362438916,1748292633060,-496.5659608,0.00023652,2]
[362438917,1748292633071,-439.64192914,0.000239,10]
[362438918,1748292633082,-439.64192906,0.00023934,10]
[362438919,1748292633093,-215.0738,0.00023941,2]
[362438920,1748292633103,-439.64192906,0.00023969,10]
[362438921,1748292633114,-260.23659,0.00023969,15]
[362438922,1748292633125,-229.15402412,0.00023978,2]
[362438923,1748292633135,-500.0,0.00023981,2]
[362438924,1748292633146,-500.0,0.00023981,2]
[362438925,1748292633156,-500.0,0.00023981,2]
[362438926,1748292633168,-500.0,0.00023981,2]
[362438927,1748292633178,-246.50965671,0.00023981,2]
[362438928,1748292633189,-500.0,0.00023981,2]
[362438929,1748292633200,-500.0,0.00023981,2]
[362438930,1748292633213,-500.0,0.00023981,2]
[362438931,1748292633223,-500.0,0.00023981,2]
[362438932,1748292633233,-500.0,0.00023981,2]
[362438933,1748292633244,-500.0,0.00023981,2]
[362438934,1748292633255,-454.26766415,0.00023981,2]
[362438935,1748292633265,-414.35191107,0.00023981,2]
[362438936,1748292633276,-500.0,0.00023981,2]
[362438937,1748292633286,-500.0,0.00023981,2]
[362438938,1748292633296,-500.0,0.00023981,2]
[362438939,1748292633307,-500.0,0.00023981,2]
[362438940,1748292633318,-470.82976134,0.00023981,2]
[362438941,1748292633329,-500.0,0.00023981,2]
[362438942,1748292633338,-500.0,0.00023981,2]
[362438943,1748292633348,-500.0,0.00023981,2]
[362438944,1748292633358,-500.0,0.00023981,2]
[362438945,1748292633368,-500.0,0.00023981,2]
[362438946,1748292633378,-500.0,0.00023981,2]
[362438947,1748292633388,-500.0,0.00023981,2]
[362438948,1748292633398,-500.0,0.00023981,2]
[362438949,1748292633557,-500.0,0.00023981,2]
[362438950,1748292633567,-307.60362284,0.00023981,2]
[362438951,1748292633578,-500.0,0.00023981,2]
[362438952,1748292633590,-500.0,0.00023988,2]
[362438953,1748292633600,-385.857,0.00023988,5]
[362438954,1748292633609,-4174.52,0.00023989,2]
[362438955,1748292633619,-439.64192906,0.00024003,10]
[362438956,1748292633629,-439.64192906,0.00024038,10]
[362438957,1748292633639,-158.8992567,0.00024055,2]
[362438958,1748292633650,-153.0,0.00024055,2]
[362438959,1748292633660,-153.0,0.00024055,2]
[362438960,1748292633669,-439.64192906,0.00024072,10]
[362438961,1748292633679,-439.64192906,0.00024107,10]
[362438962,1748292633689,-439.64192906,0.00024141,10]
[362438963,1748292633698,-439.64192906,0.00024176,10]
[362438964,1748292633708,-204.94,0.000242,3]
[362438965,1748292633718,-614.82,0.000242,3]
[362438966,1748292633729,-439.64192906,0.0002421,10]
[362438967,1748292633739,-439.64192906,0.00024245,10]
[362438968,1748292633749,-500.0,0.00024262,2]
[362438969,1748292633759,-439.64192906,0.00024279,10]
[362438970,1748292633769,-1000.0,0.000243,2]
[362438971,1748292633778,-439.64192906,0.00024314,10]
[362438972,1748292633788,-439.64192906,0.00024348,11]
[362438973,1748292633798,-439.64192906,0.00024383,11]
[362438974,1748292633808,-603.690782,0.0002439,3]
[362438975,1748292633818,-439.64192906,0.00024417,11]
[362438976,1748292633828,-2726.16755569,0.0002445,3]
[362438977,1748292633839,-500.0,0.00024451,2]
[362438978,1748292633850,-391.48575369,0.00024451,2]
[362438979,1748292633860,-500.0,0.00024451,2]
[362438980,1748292633870,-500.0,0.00024451,2]
[362438981,1748292633880,-500.0,0.00024451,2]
[362438982,1748292633890,-221.82375138,0.00024451,2]
[362438983,1748292633901,-500.0,0.00024451,2]
[362438984,1748292633911,-344.80016251,0.00024451,2]
[362438985,1748292633921,-500.0,0.00024451,2]
[362438986,1748292633931,-500.0,0.00024451,2]
[362438987,1748292633941,-615.87705867,0.00024451,2]
[362438988,1748292633951,-500.0,0.00024451,2]
[362438989,1748292633961,-500.0,0.00024451,2]
[362438990,1748292633971,-18785.71162007,0.00024452,2]
[362438991,1748292633980,-439.64192906,0.00024452,11]
[362438992,1748292633990,-150.0,0.00024473,2]
[362438993,1748292634000,-404.0,0.00024473,2]
[362438994,1748292634011,-439.64192906,0.00024486,11]
[362438995,1748292634020,-2788.35022622,0.000245,7]
[362438996,1748292634031,-439.64192906,0.00024521,11]
[362438997,1748292634041,-439.64192906,0.00024555,11]
[362438998,1748292634051,-404.58726583,0.00024557,2]
[362438999,1748292634061,-439.64192906,0.0002459,11]
[362439000,1748292634071,-156.0,0.000246,2]
[362439001,1748292634081,-220.46,0.000246,2]
[362439002,1748292634092,-404.58726581,0.00024618,2]